Cogmind - Beta 17.1 @@@ ROGUE MODE // 2026.09.17 @ 01:56:02 Player: cel Result: Destroyed by L-31 Rogue with Katana Performance ------------- Evolutions (2) 1000 Regions Visited (4) 800 Robots Destroyed (11) 55 Value Destroyed (417) 417 Prototype IDs (0) 0 Alien Tech Used (0) 0 Bonus (0) 0 TOTAL SCORE: 2272 Bonus ------- None Cogmind --------- Core Integrity 0/550 Matter 300/300 Energy 100/100 System Corruption 3% Temperature Cool (0) Movement Core (50) Location -8/Materials Parts ------- > --- POWER (1) -------- (None) > --- PROPULSION (4) --- (None) > --- UTILITY (4) ------ (None) > --- WEAPON (2) ------- (None) > --- INVENTORY (5) ---- Light Ion Engine Reaction Control System Reaction Control System Hardlight Generator Peak State ------------ > --- POWER ------------ Light Nuclear Core > --- PROPULSION ------- Aluminum Leg Aluminum Leg > --- UTILITY ---------- Heat Sink Large Storage Unit Reaction Control System Reactive Plating > --- WEAPON ----------- Medium Laser Plasma Cannon > --- INVENTORY -------- Ion Engine Light Ion Engine Small Storage Unit Small Matter Pod Reaction Control System Power Shielding Reactive Plating Reactive Plating Reactive Plating Medium Insulated Plating Hardlight Generator Hardlight Generator Corruption Screen [Rating: 21] Favorites ----------- Power Light Nuclear Core Engine Ion Engine Power Core Light Nuclear Core Propulsion Aluminum Leg Treads Light Treads Leg Aluminum Leg Wheel Compact Wheel Utility Heat Sink Device Heat Sink Storage Large Storage Unit Protection Reactive Plating Weapon Medium Laser Energy Gun Medium Laser Energy Cannon Plasma Cannon Build | -11 -10 -9 -9 -8 ------- Run | Yrd Mat Mat Min Mat Slots Evolved 4 | . . 2 . 2 Power . | . . . . . Propulsion 2 | . . 2 . . Utility 2 | . . . . 2 Weapon . | . . . . . Parts Attached 25 | 7 3 4 1 10 Power 5 | 2 1 . . 2 Engine 2 | 2 . . . . Core 3 | . 1 . . 2 Reactor . | . . . . . Propulsion 5 | 2 . 2 . 1 Treads 1 | . . . . 1 Leg 2 | 2 . . . . Wheel 2 | . . 2 . . Hover . | . . . . . Flight . | . . . . . Utility 9 | 1 1 1 . 6 Device 2 | . 1 . . 1 Storage 2 | 1 . 1 . . Processor . | . . . . . Hackware . | . . . . . Protection 5 | . . . . 5 Artifact . | . . . . . Weapon 6 | 2 1 1 1 1 Energy Gun 5 | 2 1 1 . 1 Energy Cannon 1 | . . . 1 . Ballistic Gun . | . . . . . Ballistic Cannon . | . . . . . Launcher . | . . . . . Special Weapon . | . . . . . Impact Weapon . | . . . . . Slashing Weapon . | . . . . . Piercing Weapon . | . . . . . Special Melee Weapon . | . . . . . Unidentified Prototypes . | . . . . . Parts Lost 18 | . . 3 . 15 Power 3 | . . . . 3 Propulsion 5 | . . 2 . 3 Utility 6 | . . . . 6 Weapon 4 | . . 1 . 3 Highest Loss Streak 14 | . . 2 . 14 To Critical Strikes . | . . . . . Average Backups 9 | 2 6 12 14 11 Power 1 | . 1 2 2 1 Propulsion . | 1 2 . . . Utility 6 | . 2 9 12 9 Weapon . | . 1 . . . Tool/Special . | . . . . . Unused Backups 9 | . 1 . 1 7 Power 2 | . . . 1 1 Propulsion . | . . . . . Utility 6 | . . . . 6 Weapon 1 | . 1 . . . Tool/Special . | . . . . . Average Slot Usage (%) 84 | . 99 87 77 61 Engine 4 | . 12 . . 1 Core 6 | . 1 11 11 7 Leg 20 | . 28 22 22 6 Wheel 3 | . . 11 . . Device 12 | . 13 11 11 12 Storage 11 | . 14 11 11 7 Protection 3 | . . . . 12 Energy Gun 18 | . 28 20 14 6 Energy Cannon 2 | . . . 7 6 Peak Build Rating 21 | 6 10 15 15 21 Average Rating 11 | 4 7 13 14 16 On Entrance 8 | . 6 10 12 15 Avg Prop Armor Cover (%) 16 | . . 16 . . Naked Turns 1 | . . . . 1 Heaviest Build 46 | 13 16 31 35 46 Greatest Support 26 | 20 20 26 20 20 Greatest Overweight (x) 11 | 3 . 1 1 11 Average Overweight (x) . | . . . 1 3 Largest Inventory Capacity 15 | 8 8 15 15 15 Average Capacity 11 | 7 8 14 15 13 Most Carried 15 | 4 8 14 15 14 Average Carried 10 | 2 7 12 14 11 Final Capacity 15 | 8 8 15 15 5 Final Carried 15 | 4 8 14 15 4 Class Distribution -------------------- 100% | Mutant Dominant Class ---------------- Mutant | -10/Materials Mutant | -9/Materials Mutant | -9/Mines Mutant | -8/Materials Resources | -11 -10 -9 -9 -8 ----------- Run | Yrd Mat Mat Min Mat Matter Collected 454 | 157 166 67 10 54 Remotely . | . . . . . Salvage Created 449 | . 80 267 . 102 Parts 25 | . 3 14 . 8 Haulers Intercepted . | . . . . . Recyclers Shooed . | . . . . . Parts Field Recycled . | . . . . . Retrieved Matter . | . . . . . Parts Self-Destructed . | . . . . . Prevented . | . . . . . Parts Restored . | . . . . . Kills | -11 -10 -9 -9 -8 ------- Run | Yrd Mat Mat Min Mat Combat Hostiles Destroyed 10 | . 2 6 . 2 Guns 7 | . 2 5 . . Cannons 2 | . . . . 2 Classes Destroyed 3 | . 1 2 . . Watcher 1 | . . 1 . . Grunt 8 | . 2 5 . 1 Sentry 2 | . . 1 . 1 Best Kill Streak 4 | . 2 4 . 1 Combat Bots Only 4 | . 2 4 . 1 Max Kills in Single Turn 1 | . 1 1 . 1 Gunslinging . | . . . . . Exploded . | . . . . . Melee . | . . . . . Uniques/NPCs Destroyed . | . . . . . Combat | -11 -10 -9 -9 -8 -------- Run | Yrd Mat Mat Min Mat Hostile Shots Fired 212 | . 10 48 . 154 Missed 34 | . 7 6 . 21 Hits 178 | . 3 42 . 133 Melee 8 | . . . . 8 Projectile 170 | . 3 42 . 125 Critical Strikes 12 | . . 2 . 10 Damage Taken 2647 | . 39 549 11 2048 Core 709 | . . 147 . 562 Absorbed by Shields . | . . . . . Redirected to Shielding 24 | . . . . 24 Ignored by Resistances 85 | . . . . 85 Core Remaining (%) 87 | 100 100 . 63 . Volleys Fired 52 | . 5 25 . 22 Largest 2 | . 2 2 . 2 Hottest 130 | . 90 115 . 130 Shots Fired 83 | . 10 42 . 31 Gun 67 | . 10 42 . 15 Cannon 16 | . . . . 16 Launcher . | . . . . . Special . | . . . . . Kinetic . | . . . . . Thermal 83 | . 10 42 . 31 Explosive . | . . . . . Electromagnetic . | . . . . . Robot Hit Streak 9 | . 5 7 . 9 Robot Miss Streak 3 | . 1 3 . 2 Penetration Max . | . . . . . Secondary Targets . | . . . . . Shots Hit Robots 46 | . 7 25 . 14 Core Hits 21 | . 5 11 . 5 Critical Kills . | . . . . . Critical Parts Destroyed . | . . . . . Critical Strikes 3 | . . 3 . . Burn 3 | . . 3 . . Melee Attacks . | . . . . . Impact . | . . . . . Slashing . | . . . . . Piercing . | . . . . . Sneak Attacks . | . . . . . Combat Hostiles . | . . . . . Follow-up Attacks . | . . . . . Damage Inflicted 787 | . 81 347 . 359 Guns 542 | . 81 347 . 114 Cannons 233 | . . . . 233 Explosions . | . . . . . Melee . | . . . . . Ramming 12 | . . . . 12 Kinetic . | . . . . . Thermal 775 | . 81 347 . 347 Explosive . | . . . . . Electromagnetic . | . . . . . Impact . | . . . . . Slashing . | . . . . . Piercing . | . . . . . Highest Corruption 3 | . . . . 3 Average Corruption 3 | . . . . 3 Corruption Purged . | . . . . . Corruption Blocked . | . . . . . Overload Shots . | . . . . . Overflow Damage . | . . . . . Projectiles . | . . . . . Explosions . | . . . . . Melee . | . . . . . Knockbacks . | . . . . . Impact . | . . . . . Kinetic . | . . . . . Secondary . | . . . . . Self-Inflicted Damage 3 | . . . . 3 Shots . | . . . . . Rammed 10 | . . . . 10 Targets Rammed 10 | . . . . 10 Kicked . | . . . . . Crushed . | . . . . . Highest Temperature 488 | . 15 485 . 488 Average Temperature 198 | . 9 234 . 188 Received Heat Transfer 1266 | . 21 309 . 936 Effects 12 | . . 6 . 6 Shutdowns 3 | . . 2 . 1 Energy Bleed 1 | . . . . 1 Interference 3 | . . . . 3 Matter Decay 1 | . . . . 1 Damage (minor) 1 | . . 1 . . Damage (major) 3 | . . 3 . . Siege Activations . | . . . . . Martial Activations . | . . . . . Shielding Activations . | . . . . . Robots Disrupted . | . . . . . Combat Hostiles . | . . . . . Robots Corrupted . | . . . . . Combat Hostiles . | . . . . . Parts Fried . | . . . . . Impact Corruptions . | . . . . . Robots Melted 1 | . . 1 . . Combat Hostiles 1 | . . 1 . . Parts Melted 5 | . . 4 . 1 Heat Transferred 2129 | . 199 1184 . 746 Parts Sabotaged . | . . . . . Parts Stolen . | . . . . . Parts Stripped . | . . . . . Power Chain Reactions . | . . . . . Alert | -11 -10 -9 -9 -8 ------- Run | Yrd Mat Mat Min Mat Maximum Alert Level . | . . . . . Low Security (%) 100 | 100 100 100 100 100 Level 1 . | . . . . . Level 2 . | . . . . . Level 3 . | . . . . . Level 4 . | . . . . . Level 5 . | . . . . . High Security . | . . . . . Max Security . | . . . . . Peak Influence 85 | . 50 85 24 30 Initial 24 | . . 12 24 . Average 14 | . 5 39 9 4 Influence Increases 269 | . 50 162 . 57 Destroy 0b10 Robot/C 200 | . 40 120 . 40 Destroy 0b10 Robot/NC 5 | . . 5 . . Destroy Leader 42 | . 10 22 . 10 Destroy Structure 7 | . . . . 7 Lose Combat Pursuer 15 | . . 15 . . Influence Decreases 269 | . 20 130 62 57 Entered New Map 56 | . . 18 38 . Time Decay 167 | . 20 82 24 41 Lost Part 46 | . . 30 . 16 Squads Dispatched 2 | . . 1 . 1 Investigation 1 | . . 1 . . Extermination . | . . . . . Reinforcement . | . . . . . Assault . | . . . . . Garrison 1 | . . . . 1 Intercept . | . . . . . Searches Triggered . | . . . . . Construction Impeded . | . . . . . Haulers Reinforced . | . . . . . Active Scanning Responses . | . . . . . Cargo Convoy Interrupts . | . . . . . Stealth | -11 -10 -9 -9 -8 --------- Run | Yrd Mat Mat Min Mat Distress Signals 2 | . . 1 . 1 Communications Jammed . | . . . . . Distress Signals . | . . . . . Times Spotted 22 | . 5 9 . 8 Peak Tracking Total 7 | . 2 7 . 5 Tactical Retreats 1 | . . 1 . . Traps | -11 -10 -9 -9 -8 ------- Run | Yrd Mat Mat Min Mat Traps Triggered 2 | . 1 1 . . Indirectly . | . . . . . Trap Hack Attempts . | . . . . . Triggered . | . . . . . Disarmed . | . . . . . Reprogrammed . | . . . . . Reused . | . . . . . Traps Extracted . | . . . . . Installed . | . . . . . Triggered . | . . . . . Machines | -11 -10 -9 -9 -8 ---------- Run | Yrd Mat Mat Min Mat Machines Disabled . | . . . . . Max in Single Turn . | . . . . . Machines Repaired . | . . . . . Machines Dismantled . | . . . . . Machines Sabotaged . | . . . . . Overloaded Fab Kills . | . . . . . Hacking | -11 -10 -9 -9 -8 --------- Run | Yrd Mat Mat Min Mat Machines Accessed 1 | . . . 1 . Terminals . | . . . . . Fabricators . | . . . . . Repair Stations . | . . . . . Recycling Units . | . . . . . Scanalyzers . | . . . . . Garrison Access . | . . . . . Total Hacks 1 | . . . 1 . Successful 1 | . . . 1 . Failed . | . . . . . Catastrophic . | . . . . . Database Lockouts . | . . . . . Manual . | . . . . . Terminals . | . . . . . Fabricators . | . . . . . Repair Stations . | . . . . . Recycling Units . | . . . . . Scanalyzers . | . . . . . Garrison Access . | . . . . . Terminal Hacks 1 | . . . 1 . Open Door 1 | . . . 1 . Fabricator Hacks . | . . . . . Repair Station Hacks . | . . . . . Recycling Unit Hacks . | . . . . . Scanalyzer . | . . . . . Garrison Access Hacks . | . . . . . Unauthorized Hacks . | . . . . . Terminals . | . . . . . Fabricators . | . . . . . Repair Stations . | . . . . . Recycling Units . | . . . . . Scanalyzers . | . . . . . Garrison Access . | . . . . . Data Cores Recovered . | . . . . . Used . | . . . . . Hacking Detections . | . . . . . Full Trace Events . | . . . . . Feedback Events . | . . . . . Feedback Blocked . | . . . . . Robot Schematics Acquired . | . . . . . Robots Built . | . . . . . Authchips . | . . . . . Time . | . . . . . Total Robot Build Rating . | . . . . . Part Schematics Acquired . | . . . . . Parts Built . | . . . . . Authchips . | . . . . . Time . | . . . . . Total Part Build Rating . | . . . . . Part Studies Acquired . | . . . . . Parts Repaired . | . . . . . Time . | . . . . . Parts Recycled . | . . . . . Recycled Matter . | . . . . . Retrieved Matter . | . . . . . Retrieved Components . | . . . . . Parts Scanalyzed . | . . . . . Part Schematics Acquired . | . . . . . Parts Damaged . | . . . . . Bothacking | -11 -10 -9 -9 -8 ------------ Run | Yrd Mat Mat Min Mat Used RIF Installer . | . . . . . Robots Hacked . | . . . . . Non-combat . | . . . . . Combat . | . . . . . Robot Hacks Applied . | . . . . . Relay Couplers Released . | . . . . . Fabnet Peak Effective % . | . . . . . Robots Rewired . | . . . . . Allies Hacked . | . . . . . Hacks Repelled . | . . . . . Allies | -11 -10 -9 -9 -8 -------- Run | Yrd Mat Mat Min Mat Total Allies . | . . . . . Largest Group . | . . . . . Highest-Rated Group . | . . . . . Highest-Rated Ally . | . . . . . Total Orders . | . . . . . Ally Attacks . | . . . . . Total Damage . | . . . . . Kills . | . . . . . Allies Corrupted . | . . . . . Allies Melted . | . . . . . Intel | -11 -10 -9 -9 -8 ------- Run | Yrd Mat Mat Min Mat Active Infowar (turns) . | . . . . . Robot Analysis Total . | . . . . . Derelict Logs Recovered . | . . . . . Drone Launches . | . . . . . Drone Recoveries . | . . . . . Exploration | -11 -10 -9 -9 -8 ------------- Run | Yrd Mat Mat Min Mat Turns Passed 866 | 63 278 233 84 208 Spaces Moved 439 | 37 210 121 42 29 Core 13 | 10 . . . 3 Treads 2 | . . . . 2 Legs 342 | 27 210 39 42 24 Wheels 82 | . . 82 . . Hover . | . . . . . Flight . | . . . . . Fastest Speed 50 | 50 120 105 190 260 Average Speed 146 | 135 120 125 190 372 Slowest Speed 600 | 200 120 190 190 600 Overloaded Moves . | . . . . . Propulsion Burnouts . | . . . . . Robots Hopped . | . . . . . Potential Cave-ins . | . . . . . Cave-ins Triggered . | . . . . . Exploration Rate (%) 16 | 3 45 16 14 6 Regions Visited 4 Branch Regions 1 Pre-discovered Areas . | . . . . . Known Exits Taken . | . . . . . Unknown Exits Taken 4 | 1 1 1 1 . Scrap Searched 1 | . . . 1 . Spaces Dug . | . . . . . Terrain Destroyed 7 | . . . . 7 Melee . | . . . . . Projectile 7 | . . . . 7 AOE . | . . . . . Terrain Rammed . | . . . . . Walls Destroyed . | . . . . . Machines Disabled . | . . . . . Actions | -11 -10 -9 -9 -8 --------- Run | Yrd Mat Mat Min Mat Total 557 | 46 227 161 47 76 Wait 7 | . . 3 1 3 Move 435 | 36 209 120 41 29 Hop . | . . . . . Pick Up 20 | 3 6 9 2 . Fast Attach 12 | 6 2 . 1 3 Attach 9 | . . 3 . 6 Detach . | . . . . . Swap 7 | 1 2 1 . 3 Drop 5 | . 3 . 2 . Fire 52 | . 5 25 . 22 Melee . | . . . . . Ram 8 | . . . . 8 Kick . | . . . . . Crush 2 | . . . . 2 Escape Stasis . | . . . . . Rewire . | . . . . . Trap . | . . . . . Miscellaneous . | . . . . . Route ------- -11/Scrapyard -10/Materials -9/Materials -9/Mines -8/Materials History --------- Turn | Location | Event 16 | -11/Scrapyard | Discovered new exit (range 16) 64 | -11/Scrapyard | Entered Materials 305 | -10/Materials | Build established: Mutant 331 | -10/Materials | Discovered new exit (range 4) 342 | -10/Materials | Entered another Materials area 342 | -9/Materials | Evolved 2 slots: Propulsion x2 545 | -9/Materials | Discovered new exit (range 13) 575 | -9/Materials | Entered Mines 580 | -9/Mines | Met a Derelict who couldn't figure out how to use a Trap Extractor 646 | -9/Mines | Discovered new exit (range 7) 659 | -9/Mines | Entered Materials 659 | -8/Materials | Evolved 2 slots: Utility x2 783 | -8/Materials | Garrison activated, responded to threat 838 | -8/Materials | Core integrity fell below 50% 864 | -8/Materials | Core integrity fell below 20% 867 | -8/Materials | Destroyed by L-31 Rogue with Katana Last Messages --------------- W-25 Informer sends out distress signal. Slammed into G-47 Trooper. Lgt. Nuclear Core destroyed. K-01 Serf collects debris. Acquired Lgt. Nuclear Core. Slammed into L-31 Rogue. Acquired 54 matter. Critical hit (Smash). Reactive Plating destroyed. Slammed into L-31 Rogue. Critical hit (Smash). Slammed into L-31 Rogue. Destabilizing: Core damaged (-11). Reactive Plating severed. Critical hit (Burn: +37). Power Shielding destroyed. System corrupted by crushing effect (+3). Slammed into L-31 Rogue. Lgt. Nuclear Core destroyed. Slammed into L-31 Rogue. Map ----- +----------------------------------------------------+ | | | | | | | | | | | | | | | | | | | | | | | | | | | | | | | | | | | | | | | ??????????#########??????????????????????????????? | | ??????????# #??????????????????????????????? | | ??????????# """ #??????????????????????????????? | | ??????????# """ !#???????????????""?????????????? | | ??????????# """ #??????????##??"""?????????????? | | ???????????? ???????#######? """?????????????? | | ???###########+##########@ # ???????????????? | | ???# l !g ##+######??????????? | | ???# %!b!= ??????? | | ???# !%#######+#??????????? | | ???#############+######## Y=!!##?????????????????? | | ???????????# #??###a###??????????????????? | | ???????????# """ """ #????#w##???????????????????? | | ???????????# """ """ #????# ##???????????????????? | | ???????????# """ """ #????# #????????????????????? | | ???????????# #????# #????????????????????? | | ???????????# #????#/#????????????????????? | | ???????????# #????? ????????????????????? | | ???????????? "T" ?????? ????????????????????? | | ????????????#########?????? ????????????????????? | | ???????????????????????????""????????????????????? | | ???????????????????????????"?????????????????????? | | ?????????????????????????????????????????????????? | | ?????????????????????????????????????????????????? | | ?????????????????????????????????????????????????? | | ?????????????????????????????????????????????????? | | ?????????????????????????????????????????????????? | | ?????????????????????????????????????????????????? | | ?????????????????????????????????????????????????? | | ?????????????????????????????????????????????????? | | ?????????????????????????????????????????????????? | +----------------------------------------------------+ Best States ------------- Heat Dissipation 41 Energy Generation 14 Energy Capacity 250 Matter Stores 300 Matter Capacity 300 Sight Range 16 Terrain Scan Density 10 Armor Coverage 375 Resistance: KI 20 Resistance: EM 20 Power Shielding 33 Evasion (%) 55 Recoil Reduction 1 Item Schematics ----------------- None Robot Schematics ------------------ None Fabricated ------------ Nothing Repaired ---------- Nothing Studied --------- None Alien Tech Used ----------------- None Achievements -------------- None Challenges ------------ None Game ------ Seed CannonLongswordWyrmscale Manual? 0 Play Time 00:13:37 Cumulative 32.4 hours Start 2026.09.17 @ 00:40:28 End 2026.09.17 @ 01:56:02 Sessions 2 Manual Loads 0 Difficulty Rogue Special Mode None Game No. 48 Rogue 48 Adventurer 0 Explorer 0 Win Type - Total 0 Types 0/0/0/0/0/0/0/0/0/0 Lore% 24 Gallery% 22 Achievement% 17 Wizard Run 0 Options --------- Layout 1 ASCII 0 Keyboard 0 Movement Mouse Keybinds 0 Fullscreen 1 Font 16/SmallcapsGlow Map View 50x40 Zoom Use 0% Tactical HUD 0 Map Filters NONE Filters NONE Steam SD RUN: b54945cc-f201-4a3f-9af2-341992569923